[Event "POR-ch Amateur 2018"]
[Site "Braga"]
[Date "2018.09.08"]
[Round "3"]
[White "Barroso, Simao Oliveira Alvi"]
[Black "Pacheco, Joao Daniel Barbosa"]
[Result "1-0"]
[ECO "D00"]
[WhiteElo "1570"]
[BlackElo "1181"]
[PlyCount "115"]
[EventDate "2018.09.02"]
[EventType "tourn"]
[EventCountry "POR"]
[TimeControl "40/5400+30:1800+30"]

1. d4 d5 2. Bf4 Bf5 3. Nf3 e6 4. e3 Bd6 5. Bxd6 Qxd6 6. Nbd2 c5 7. c3 Nc6 8. Be2 Nf6 9. O-O O-O 10. Nh4 Be4 11. f3 Bg6 12. Nxg6 hxg6 13. Nb3 c4 14. Nd2 Ne7 15. e4 Qf4 16. e5 Nh7 17. g3 Qe3+ 18. Kg2 Qh6 19. Rf2 Nf5 20. Nf1 f6 21. Qc1 Qxc1 22. Rxc1 Kf7 23. g4 Ne7 24. f4 Rg8 25. Ne3 f5 26. h4 Raf8 27. h5 Rh8 28. hxg6+ Kxg6 29. gxf5+ Nxf5 30. Nxf5 Kxf5 31. Kg3 Kg6 32. Bg4 Kf7 33. f5 Ke7 34. fxe6 Ng5 35. Rxf8 Rxf8 36. Rc2 Nxe6 37. Bf3 Nf4 38. Rf2 Nd3 39. Rh2 Ke6 40. Rh7 Rg8 41. b3 b5 42. Bg4+ Ke7 43. bxc4 bxc4 44. Bf5 Nc1 45. Rh2 Rc8 46. Bxc8 Nd3 47. Bf5 Nc1 48. Rc2 Nd3 49. Bxd3 cxd3 50. Rd2 Ke6 51. Rxd3 Kf5 52. Rf3+ Ke6 53. Kg4 a5 54. Kg5 a4 55. Kg6 a3 56. Kxg7 Ke7 57. Rf6 Kd7 58. e6+ 1-0

[Event "POR-ch Amateur 2018"]
[Site "Braga"]
[Date "2018.09.09"]
[Round "3"]
[White "Barroso, Simao Oliveira Alvi"]
[Black "Lomba, Lucas"]
[Result "1-0"]
[ECO "B27"]
[WhiteElo "1570"]
[BlackElo "1383"]
[PlyCount "55"]
[EventDate "2018.09.02"]
[EventType "tourn"]
[EventCountry "POR"]
[TimeControl "40/5400+30:1800+30"]

1. e4 c5 2. Nf3 g6 3. d4 cxd4 4. Nxd4 Bg7 5. Be3 Nf6 6. Nd2 Nc6 7. c3 d5 8. exd5 Nxd5 9. Nxc6 bxc6 10. Bc5 O-O 11. Bc4 Bf5 12. O-O Qa5 13. Nb3 Qd8 14. Re1 Re8 15. Qf3 e6 16. Nd4 Qa5 17. b4 Qa3 18. g4 Bxd4 19. Bxd4 Bc2 20. Bxd5 cxd5 21. Qf6 Kf8 22. Qg7+ Ke7 23. Bc5+ Kd7 24. Qxf7+ Kc6 25. Rxe6+ Rxe6 26. Qxe6+ Kb5 27. Qe2+ Kc6 28. Qxc2 1-0

[Event "POR-ch Amateur 2018"]
[Site "Braga"]
[Date "2018.09.08"]
[Round "3"]
[White "Da Silva, Pedro Vieira Prado"]
[Black "Ribeiro, Gustavo"]
[Result "1/2-1/2"]
[ECO "C07"]
[WhiteElo "1521"]
[BlackElo "1414"]
[PlyCount "62"]
[EventDate "2018.09.02"]
[EventType "tourn"]
[EventCountry "POR"]
[TimeControl "40/5400+30:1800+30"]
[WhiteClock "0:58:59"]
[BlackClock "0:24:33"]

1. e4 {[%emt 0:00:00]} e6 {[%emt 0:00:12]} 2. d4 {[%emt 0:00:00]} d5 {[%emt 0:00:21]} 3. Nd2 {[%emt 0:00:00]} c5 {[%emt 0:00:29]} 4. Ngf3 {[%emt 0:03:50]} Nc6 {[%emt 0:04:22]} 5. Bb5 {[%emt 0:04:28]} a6 {[%emt 0:09:32]} 6. Bxc6+ {[%emt 0:04:54]} bxc6 {[%emt 0:01:25]} 7. c3 {[%emt 0:05:16]} cxd4 {[%emt 0:01:35]} 8. cxd4 {[%emt 0:01:12]} c5 {[%emt 0:01:12]} 9. Qc2 {[%emt 0:08:30]} cxd4 {[%emt 0:06:13]} 10. Qa4+ {[%emt 0:05:21]} Qd7 {[%emt 0:02:10]} 11. Qxd4 {[%emt 0:01:46]} dxe4 {[%emt 0:01:31]} 12. Nxe4 {[%emt 0:01:08]} Qxd4 {[%emt 0:00:13]} 13. Nxd4 {[%emt 0:00:01]} Bb7 {[%emt 0:00:12]} 14. f3 {[%emt 0:11:41]} e5 {[%emt 0:01:12]} 15. Ne2 {[%emt 0:03:54]} Bxe4 {[%emt 0:00:38]} 16. fxe4 {[%emt 0:00:02]} Nf6 {[%emt 0:00:17]} 17. Ng3 {[%emt 0:02:18]} Bb4+ {[%emt 0:00:12]} 18. Ke2 {[%emt 0:02:07]} Rc8 {[%emt 0:01:31]} 19. a3 {[%emt 0:03:10]} Ba5 {[%emt 0:01:23]} 20. b4 {[%emt 0:02:06]} Bb6 {[%emt 0:00:12]} 21. Bd2 {[%emt 0:01:51]} Bd4 {[%emt 0:00:58]} 22. Rac1 {[%emt 0:02:41]} Kd7 {[%emt 0:02:08]} 23. Rhd1 {[%emt 0:05:04]} Ke6 {[%emt 0:01:52]} 24. Rxc8 Rxc8 {[%emt 0:00:09]} 25. Rc1 {[%emt 0:04:55]} Rxc1 {[%emt 0:01:38]} 26. Bxc1 {[%emt 0:00:01]} Bg1 {[%emt 0:00:48]} 27. h3 {[%emt 0:01:43]} Bh2 {[%emt 0:00:41]} 28. Nf1 {[%emt 0:01:59]} Bf4 {[%emt 0:01:22]} 29. Bxf4 {[%emt 0:00:25]} exf4 {[%emt 0:00:08]} 30. Kf3 {[%emt 0:00:09]} Ke5 {[%emt 0:01:25]} 31. Nd2 {[%emt 0:00:25]} g5 1/2-1/2

[Event "POR-ch Amateur 2018"]
[Site "Braga"]
[Date "2018.09.09"]
[Round "3"]
[White "Machado, Tiago Candido Leita"]
[Black "Soares, Sara Joana De Moura"]
[Result "1/2-1/2"]
[ECO "C50"]
[WhiteElo "1473"]
[BlackElo "1431"]
[PlyCount "74"]
[EventDate "2018.09.02"]
[EventType "tourn"]
[EventCountry "POR"]
[TimeControl "40/5400+30:1800+30"]

1. e4 e5 2. Nf3 Nc6 3. Bc4 Bc5 4. d3 Nf6 5. Nc3 d6 6. h3 a6 7. O-O h6 8. Be3 Ba7 9. Bxa7 Rxa7 10. Qd2 O-O 11. Nd5 Ra8 12. Nh2 Nxd5 13. Bxd5 Ne7 14. Bb3 Ng6 15. Qe3 Qe7 16. Rfe1 Be6 17. Nf1 Bxb3 18. axb3 Rfe8 19. Ng3 Rad8 20. Rad1 c6 21. Ne2 Qc7 22. Rf1 d5 23. f4 exf4 24. Nxf4 Nxf4 25. Rxf4 dxe4 26. Rxe4 Rxe4 27. Qxe4 Qd6 28. Re1 Qc5+ 29. Re3 Qxc2 30. Qe7 Rf8 31. Rg3 Qxb2 32. Qxb7 Qe5 33. Rg4 Re8 34. Qxc6 Qe1+ 35. Kh2 Qe5+ 36. Rg3 h5 37. Qc4 g5 1/2-1/2

[Event "POR-ch Amateur 2018"]
[Site "Braga"]
[Date "2018.09.09"]
[Round "3"]
[White "Rodriguez Farias, Cesar David"]
[Black "Fernandes, Rui Filipe Santos"]
[Result "1/2-1/2"]
[ECO "B23"]
[WhiteElo "1445"]
[BlackElo "1345"]
[PlyCount "100"]
[EventDate "2018.09.02"]
[EventType "tourn"]
[EventCountry "POR"]
[TimeControl "40/5400+30:1800+30"]

1. e4 c5 2. Nc3 d6 3. Nf3 e6 4. d3 Be7 5. Be2 Nc6 6. O-O Nf6 7. b3 O-O 8. Bb2 e5 9. Nb1 Be6 10. Nbd2 Qc7 11. c3 a6 12. d4 cxd4 13. cxd4 exd4 14. Nxd4 Nxd4 15. Bxd4 Rac8 16. Bd3 Qa5 17. Qe2 Qg5 18. Be3 Qa5 19. Nc4 Bxc4 20. Bxc4 b5 21. Bd3 Rfe8 22. Bd2 Qb6 23. Be3 Qb7 24. Bd4 Qd7 25. Rfd1 Qe6 26. h3 Bf8 27. Re1 Nd7 28. a4 Qxb3 29. axb5 axb5 30. Bxb5 Red8 31. Rec1 Nc5 32. Rc3 Qe6 33. Bxc5 dxc5 34. Ra7 Qe5 35. Rf3 Ra8 36. Rxa8 Rxa8 37. g3 Be7 38. Bc4 Bf6 39. Kg2 Rd8 40. Qa2 Rf8 41. Bd5 Qd4 42. Ra3 Qb2 43. Qxb2 Bxb2 44. Ra4 g6 45. Rc4 Bd4 46. Rc2 Rb8 47. Kf3 Rb6 48. g4 h6 49. Kg2 Kg7 50. Kf3 Rf6+ 1/2-1/2

[Event "POR-ch Amateur 2018"]
[Site "Braga"]
[Date "2018.09.08"]
[Round "3"]
[White "Rodriguez Farias, Cesar David"]
[Black "Fernandes, Tiago Joao Carneiro"]
[Result "1-0"]
[ECO "C50"]
[WhiteElo "1445"]
[BlackElo "1232"]
[PlyCount "147"]
[EventDate "2018.09.02"]
[EventType "tourn"]
[EventCountry "POR"]
[TimeControl "40/5400+30:1800+30"]

1. e4 e5 2. Nf3 Nc6 3. Bc4 Bc5 4. O-O d6 5. d3 Bg4 6. c3 Na5 7. Nbd2 Nxc4 8. Nxc4 Qf6 9. Bg5 Qg6 10. Qa4+ c6 11. Ncd2 h6 12. Be3 Bxe3 13. fxe3 Nf6 14. Rae1 O-O 15. Kh1 a5 16. c4 Rfb8 17. c5 Nd7 18. cxd6 c5 19. Qb3 Be6 20. Qb5 Ra6 21. Nc4 Bxc4 22. Qxc4 Rxd6 23. Rd1 b5 24. Qc2 c4 25. dxc4 Rc8 26. Rxd6 Qxd6 27. b3 Nb6 28. Rd1 Qe6 29. Qc3 f6 30. Qxa5 bxc4 31. bxc4 Nxc4 32. Qc3 Qb6 33. Rd3 Qb7 34. Qb3 Qxe4 35. Nd2 Qh4 36. h3 Qe1+ 37. Kh2 Qc1 38. Nxc4 Rxc4 39. Rd1 Qc3 40. Qxc3 Rxc3 41. Re1 Ra3 42. Re2 g5 43. Kg3 f5 44. Kf2 Kf7 45. g3 f4 46. gxf4 exf4 47. exf4 gxf4 48. Re4 Rxa2+ 49. Ke1 Ra1+ 50. Kf2 Ra2+ 51. Kf3 Ra3+ 52. Kg4 Ra4 53. Rxa4 Kg6 54. Kxf4 Kh5 55. Kg3 Kg5 56. Ra5+ Kf6 57. Kf4 Kg6 58. Rb5 h5 59. h4 Kh6 60. Rb6+ Kg7 61. Ke5 Kf7 62. Ra6 Kg7 63. Kf5 Kh7 64. Kg5 Kg7 65. Ra7+ Kf8 66. Kg6 Ke8 67. Kf6 Kd8 68. Ke6 Kc8 69. Kd6 Kb8 70. Rh7 Kc8 71. Rg7 Kb8 72. Kc6 Ka8 73. Kb6 Kb8 74. Rg8# 1-0

[Event "POR-ch Amateur 2018"]
[Site "Braga"]
[Date "2018.09.08"]
[Round "3"]
[White "Soares, Sara Joana De Moura"]
[Black "Fernandes, Rui Filipe Santos"]
[Result "1-0"]
[ECO "B92"]
[WhiteElo "1431"]
[BlackElo "1345"]
[PlyCount "93"]
[EventDate "2018.09.02"]
[EventType "tourn"]
[EventCountry "POR"]
[TimeControl "40/5400+30:1800+30"]

1. e4 c5 2. Nf3 d6 3. d4 cxd4 4. Nxd4 Nf6 5. Nc3 a6 6. Be2 e5 7. Nb3 Be7 8. Be3 Be6 9. O-O d5 10. exd5 Nxd5 11. Nxd5 Qxd5 12. Bf3 e4 13. Qxd5 Bxd5 14. Bg4 Bc4 15. Rfd1 f5 16. Bxf5 Bf6 17. Bd4 O-O 18. Bxf6 Rxf6 19. Bxe4 Nc6 20. Bd5+ Bxd5 21. Rxd5 Re8 22. f3 Re2 23. Rd2 Rfe6 24. Kf1 R2e5 25. c3 Re7 26. Rad1 Kf7 27. Rd7 Kf6 28. Rxe7 Rxe7 29. Nc5 Na5 30. Ne4+ Ke5 31. Re1 Kf4 32. g3+ Kf5 33. Nd6+ Kf6 34. Rxe7 Kxe7 35. Ne4 Nc4 36. b3 Ne5 37. Ke2 h6 38. f4 Nc6 39. Ke3 b6 40. c4 Nb4 41. Nc3 Ke6 42. Ke4 g6 43. g4 g5 44. f5+ Kd6 45. h3 b5 46. cxb5 axb5 47. Nxb5+ 1-0

[Event "POR-ch Amateur 2018"]
[Site "Braga"]
[Date "2018.09.09"]
[Round "3"]
[White "Ribeiro, Gustavo"]
[Black "De Souza, Paulo H  Pinheiro"]
[Result "1-0"]
[ECO "C20"]
[WhiteElo "1414"]
[BlackElo "1619"]
[PlyCount "95"]
[EventDate "2018.09.02"]
[EventType "tourn"]
[EventCountry "POR"]
[TimeControl "40/5400+30:1800+30"]
[WhiteClock "0:04:10"]
[BlackClock "0:53:16"]

1. e4 {[%emt 0:01:26]} e5 {[%emt 0:00:00]} 2. c3 {[%emt 0:00:36]} Nf6 {[%emt 0:01:46]} 3. Qc2 {[%emt 0:00:18]} Bc5 {[%emt 0:02:44]} 4. d4 {[%emt 0:03:08]} exd4 {[%emt 0:02:12]} 5. cxd4 {[%emt 0:00:36]} Bxd4 {[%emt 0:00:44]} 6. Nf3 {[%emt 0:00:16]} Bb6 {[%emt 0:02:31]} 7. e5 {[%emt 0:00:47]} Ng4 {[%emt 0:04:54]} 8. e6 {[%emt 0:01:49]} Bxf2+ {[%emt 0:01:35]} 9. Ke2 {[%emt 0:00:33]} Qe7 {[%emt 0:04:50]} 10. Qxc7 {[%emt 0:02:38]} Qxe6+ {[%emt 0:01:41]} 11. Kd1 {[%emt 0:00:32]} Nc6 {[%emt 0:04:15]} 12. Qf4 {[%emt 0:02:48]} Bc5 {[%emt 0:07:32]} 13. Bc4 {[%emt 0:01:55]} Qd6+ {[%emt 0:11:41]} 14. Kc2 {[%emt 0:01:23]} Qg6+ {[%emt 0:02:54]} 15. Bd3 {[%emt 0:02:33]} Nb4+ {[%emt 0:00:24]} 16. Qxb4 {[%emt 0:00:44]} Qxd3+ {[%emt 0:03:28]} 17. Kxd3 {[%emt 0:00:18]} Bxb4 {[%emt 0:00:08]} 18. Kc4 {[%emt 0:00:08]} Bd6 {[%emt 0:04:03]} 19. Kd5 {[%emt 0:02:48]} Bc7 {[%emt 0:00:57]} 20. Re1+ {[%emt 0:04:20]} Kd8 {[%emt 0:00:51]} 21. Ng5 {[%emt 0:03:48]} Nf6+ {[%emt 0:01:45]} 22. Kc4 {[%emt 0:00:41]} d5+ {[%emt 0:03:02]} 23. Kb3 {[%emt 0:00:10]} Rf8 {[%emt 0:00:13]} 24. Be3 {[%emt 0:00:58]} Bd6 {[%emt 0:03:57]} 25. Bd4 {[%emt 0:01:34]} h6 {[%emt 0:01:39]} 26. Bxf6+ {[%emt 0:01:45]} gxf6 {[%emt 0:00:17]} 27. Nh7 {[%emt 0:00:55]} Rh8 {[%emt 0:05:25]} 28. Nxf6 {[%emt 0:00:25]} Be6 {[%emt 0:00:16]} 29. h3 {[%emt 0:03:00]} Rc8 {[%emt 0:00:55]} 30. Nd2 {[%emt 0:02:08]} d4+ {[%emt 0:02:01]} 31. Ka4 {[%emt 0:00:02]} a6 {[%emt 0:05:51]} 32. Rec1 {[%emt 0:02:10]} Ke7 {[%emt 0:02:39]} 33. Nde4 {[%emt 0:01:00]} Be5 {[%emt 0:02:48]} 34. Nh5 {[%emt 0:01:39]} Rc4+ {[%emt 0:05:08]} 35. Ka3 {[%emt 0:01:58]} Bd5 {[%emt 0:01:32]} 36. Rxc4 {[%emt 0:01:12]} Bxc4 {[%emt 0:00:14]} 37. Re1 {[%emt 0:00:16]} Bd6+ {[%emt 0:01:48]} 38. Nxd6+ {[%emt 0:00:49]} Kxd6 {[%emt 0:00:07]} 39. Re4 {[%emt 0:00:44]} Bd5 {[%emt 0:01:55]} 40. Rxd4 {[%emt 0:00:19]} Kc5 {[%emt 0:00:09]} 41. Rd2 {[%emt 0:30:24]} a5 {[%emt 0:30:45]} 42. Rc2+ {[%emt 0:01:02]} Kb5 {[%emt 0:01:06]} 43. Nf4 {[%emt 0:00:54]} Bc6 {[%emt 0:01:15]} 44. Nd3 {[%emt 0:01:00]} b6 {[%emt 0:00:51]} 45. Ne5 {[%emt 0:00:28]} Bd5 {[%emt 0:00:46]} 46. Rf2 {[%emt 0:00:38]} Rf8 {[%emt 0:02:20]} 47. g4 {[%emt 0:00:54]} Kc5 {[%emt 0:01:26]} 48. Nd7+ {[%emt 0:00:15]} 1-0

[Event "POR-ch Amateur 2018"]
[Site "Braga"]
[Date "2018.09.08"]
[Round "3"]
[White "Fonseca, Pedro Miguel Ramos"]
[Black "Mendes, Bruno Daniel"]
[Result "1-0"]
[ECO "C01"]
[WhiteElo "1393"]
[BlackElo "1432"]
[PlyCount "118"]
[EventDate "2018.09.02"]
[EventType "tourn"]
[EventCountry "POR"]
[TimeControl "40/5400+30:1800+30"]
[WhiteClock "0:07:17"]
[BlackClock "0:47:37"]

1. e4 {[%emt 0:00:00]} e6 {[%emt 0:00:00]} 2. d4 {[%emt 0:00:00]} d5 {[%emt 0:00:00]} 3. exd5 {[%emt 0:00:00]} exd5 {[%emt 0:00:00]} 4. Nf3 {[%emt 0:00:15]} Nc6 {[%emt 0:00:20]} 5. Bb5 {[%emt 0:00:36]} Bd6 {[%emt 0:01:05]} 6. c4 {[%emt 0:02:12]} dxc4 {[%emt 0:01:27]} 7. d5 {[%emt 0:00:06]} a6 {[%emt 0:01:19]} 8. Ba4 {[%emt 0:02:00]} b5 {[%emt 0:01:33]} 9. dxc6 {[%emt 0:00:08]} bxa4 {[%emt 0:00:06]} 10. O-O {[%emt 0:01:04]} Ne7 {[%emt 0:01:35]} 11. Qxa4 {[%emt 0:01:49]} Be6 {[%emt 0:01:21]} 12. Nbd2 {[%emt 0:01:12]} Bd5 {[%emt 0:04:25]} 13. Nxc4 {[%emt 0:02:42]} Bxc6 {[%emt 0:03:07]} 14. Qb3 {[%emt 0:02:19]} O-O {[%emt 0:05:17]} 15. Rd1 {[%emt 0:02:18]} Rb8 {[%emt 0:04:06]} 16. Qc3 {[%emt 0:04:11]} Bxh2+ {[%emt 0:01:40]} 17. Kxh2 {[%emt 0:00:26]} Qxd1 {[%emt 0:00:07]} 18. Bh6 {[%emt 0:00:39]} Nf5 {[%emt 0:10:56]} 19. Rxd1 {[%emt 0:00:51]} Nxh6 {[%emt 0:00:17]} 20. Nfe5 {[%emt 0:01:06]} Bb5 {[%emt 0:01:53]} 21. Na3 {[%emt 0:02:49]} Rfc8 {[%emt 0:03:39]} 22. Nxb5 {[%emt 0:02:09]} Rxb5 {[%emt 0:00:22]} 23. Qd4 {[%emt 0:01:04]} Rxe5 {[%emt 0:00:19]} 24. f3 {[%emt 0:00:59]} Ree8 {[%emt 0:02:18]} 25. Qc4 {[%emt 0:00:43]} Nf5 {[%emt 0:07:42]} 26. Qxa6 {[%emt 0:01:38]} c5 {[%emt 0:12:47]} 27. Rd7 {[%emt 0:02:17]} Nd4 {[%emt 0:01:09]} 28. Qc4 {[%emt 0:03:42]} Ne6 {[%emt 0:04:25]} 29. f4 {[%emt 0:00:53]} Rb8 {[%emt 0:02:58]} 30. f5 {[%emt 0:03:22]} Ng5 {[%emt 0:01:45]} 31. b3 {[%emt 0:02:21]} Rb4 {[%emt 0:04:25]} 32. Qd3 {[%emt 0:04:57]} Rbb8 {[%emt 0:06:11]} 33. Qg3 {[%emt 0:01:53]} h6 {[%emt 0:01:13]} 34. Qd6 {[%emt 0:03:02]} Ne4 {[%emt 0:04:01]} 35. Qd5 {[%emt 0:00:21]} Ng5 {[%emt 0:02:13]} 36. Qxc5 {[%emt 0:00:56]} Rbc8 {[%emt 0:00:42]} 37. Qd4 {[%emt 0:01:04]} Rc2 {[%emt 0:00:18]} 38. Qd5 {[%emt 0:05:21]} Ree2 {[%emt 0:01:52]} 39. Rd8+ {[%emt 0:00:22]} Kh7 {[%emt 0:00:04]} 40. Qa8 {[%emt 0:01:15]} Rxg2+ {[%emt 0:01:23]} 41. Qxg2 {[%emt 0:30:21]} Nf3+ {[%emt 0:30:44]} 42. Kg3 {[%emt 0:00:31]} Rxg2+ {[%emt 0:00:37]} 43. Kxg2 {[%emt 0:00:09]} Nh4+ {[%emt 0:00:06]} 44. Kf2 {[%emt 0:00:27]} Nxf5 {[%emt 0:00:11]} 45. a4 {[%emt 0:00:22]} g5 {[%emt 0:02:17]} 46. a5 {[%emt 0:00:10]} Ne7 {[%emt 0:02:18]} 47. a6 {[%emt 0:00:55]} Nc6 {[%emt 0:00:05]} 48. b4 Nxb4 49. a7 {[%emt 0:00:49]} Nc6 {[%emt 0:01:17]} 50. a8=Q {[%emt 0:00:15]} Nxd8 51. Qxd8 {[%emt 0:00:06]} Kg6 {[%emt 0:00:13]} 52. Qg8+ {[%emt 0:00:27]} Kf6 {[%emt 0:00:15]} 53. Qh7 {[%emt 0:00:13]} Ke6 {[%emt 0:00:58]} 54. Qxh6+ {[%emt 0:00:11]} Kf5 {[%emt 0:00:12]} 55. Kf3 {[%emt 0:00:31]} f6 {[%emt 0:00:16]} 56. Qh5 {[%emt 0:00:17]} Ke5 {[%emt 0:00:26]} 57. Qg6 {[%emt 0:00:24]} Ke6 {[%emt 0:00:19]} 58. Ke4 {[%emt 0:00:13]} g4 59. Qxg4+ f5+ {[%emt 0:01:39]} 1-0

[Event "POR-ch Amateur 2018"]
[Site "Braga"]
[Date "2018.09.08"]
[Round "3"]
[White "Lomba, Lucas"]
[Black "Soares, Sara Joana De Moura"]
[Result "0-1"]
[ECO "C54"]
[WhiteElo "1383"]
[BlackElo "1431"]
[PlyCount "138"]
[EventDate "2018.09.02"]
[EventType "tourn"]
[EventCountry "POR"]
[TimeControl "40/5400+30:1800+30"]

1. e4 e5 2. Nf3 Nc6 3. Bc4 Bc5 4. c3 Nf6 5. d4 exd4 6. Bb5 d5 7. e5 Ne4 8. Bxc6+ bxc6 9. cxd4 Bb6 10. O-O Bg4 11. Nc3 O-O 12. Be3 f6 13. Nxe4 dxe4 14. Qb3+ Qd5 15. Nd2 Kh8 16. Qxd5 cxd5 17. f3 exf3 18. exf6 Rxf6 19. Nxf3 Bxf3 20. Rxf3 Rxf3 21. gxf3 Re8 22. Kf2 Kg8 23. a4 a5 24. Rg1 Kf7 25. Rg5 c6 26. f4 h6 27. Re5 Re6 28. Kf3 Bc7 29. Rxe6 Kxe6 30. Kg4 Kf6 31. h4 Kg6 32. h5+ Kf6 33. f5 Bb6 34. Bf2 Bc7 35. Bh4+ Kf7 36. Bg3 Bb6 37. Be5 Ba7 38. Kf4 Bb6 39. Ke3 Bd8 40. Kf3 Bb6 41. Ke3 Bd8 42. Kf3 Bb6 43. Ke3 Bd8 44. Kf3 Bf6 45. Bxf6 gxf6 46. Ke3 Ke7 47. Kd3 Kd6 48. Kc3 c5 49. b3 Kc6 50. Kd3 Kb6 51. Kc3 cxd4+ 52. Kxd4 Kc6 53. Kd3 Kc5 54. Kc3 d4+ 55. Kd3 Kd5 56. b4 axb4 57. a5 Kc5 58. a6 Kb6 59. a7 Kxa7 60. Kxd4 b3 61. Kc3 b2 62. Kxb2 Kb6 63. Kb3 Kc5 64. Ka4 Kd5 65. Kb5 Ke5 66. Kc5 Kxf5 67. Kd5 Kg5 68. Ke4 f5+ 69. Ke3 Kxh5 0-1

[Event "POR-ch Amateur 2018"]
[Site "Braga"]
[Date "2018.09.08"]
[Round "3"]
[White "Silva, Pedro Filipe Carval"]
[Black "Brandao, Bruno Lopes"]
[Result "0-1"]
[ECO "B35"]
[WhiteElo "1361"]
[BlackElo "1711"]
[PlyCount "114"]
[EventDate "2018.09.02"]
[EventType "tourn"]
[EventCountry "POR"]
[TimeControl "40/5400+30:1800+30"]

1. e4 c5 2. Nf3 Nc6 3. d4 cxd4 4. Nxd4 g6 5. Nc3 Bg7 6. Be3 Nf6 7. Bc4 Qa5 8. Qd2 Ng4 9. Nb3 Qb4 10. Be2 Nxe3 11. Qxe3 O-O 12. O-O-O Bxc3 13. bxc3 Qa3+ 14. Kb1 d6 15. g4 Be6 16. f4 a5 17. f5 Bxb3 18. cxb3 a4 19. Bc4 Ne5 20. Qe2 Rfc8 21. Rd4 axb3 22. Bxb3 Rxc3 23. Qb2 Qxb2+ 24. Kxb2 Rh3 25. fxg6 hxg6 26. g5 Nf3 27. Rd3 Nxg5 28. Rxh3 Nxh3 29. Rc1 Kf8 30. Rc7 Rb8 31. Kc3 Ng5 32. Kd3 Nf3 33. Bd5 b6 34. h4 Nxh4 35. Kd4 Nf3+ 36. Kc4 Ne5+ 37. Kb5 g5 38. Rb7 Rxb7 39. Bxb7 g4 40. Bc8 e6 41. Kxb6 g3 42. a4 g2 43. a5 Nc4+ 44. Kb5 Nxa5 45. Kxa5 g1=Q 46. Kb5 Qc5+ 47. Ka6 Qxc8+ 48. Ka7 Qc1 49. Kb6 d5 50. exd5 exd5 51. Kb5 Qc2 52. Kb4 d4 53. Kb5 d3 54. Kb4 d2 55. Ka3 d1=Q 56. Kb4 Qdb1+ 57. Ka5 Qca2# 0-1

[Event "POR-ch Amateur 2018"]
[Site "Braga"]
[Date "2018.09.08"]
[Round "3"]
[White "Fernandes, Rui Filipe Santos"]
[Black "Pinto, Andre Filipe Silva"]
[Result "0-1"]
[ECO "B12"]
[WhiteElo "1345"]
[BlackElo "2002"]
[PlyCount "76"]
[EventDate "2018.09.02"]
[EventType "tourn"]
[EventCountry "POR"]
[TimeControl "40/5400+30:1800+30"]

1. e4 c6 2. d4 d5 3. e5 Bf5 4. Bd3 Bxd3 5. Qxd3 e6 6. Nf3 Nd7 7. O-O c5 8. c3 cxd4 9. cxd4 Ne7 10. Nc3 Nc6 11. a3 Be7 12. b4 a6 13. Na4 O-O 14. Bd2 Nb6 15. Nxb6 Qxb6 16. Rfc1 Rfc8 17. h4 Qd8 18. Ng5 Bxg5 19. Bxg5 Qb6 20. Rc5 h6 21. Be3 Ne7 22. Rac1 Rc6 23. g4 Rac8 24. f4 Rxc5 25. dxc5 Qb5 26. Qxb5 axb5 27. h5 Nc6 28. Rd1 Ra8 29. Rd3 Kf8 30. Bd4 Nxd4 31. Rxd4 Rxa3 32. f5 Rc3 33. Kf2 Rc4 34. Ke3 Rxd4 35. Kxd4 Ke7 36. Ke3 g6 37. fxg6 fxg6 38. hxg6 Kf8 0-1

[Event "POR-ch Amateur 2018"]
[Site "Braga"]
[Date "2018.09.08"]
[Round "3"]
[White "Pedroso, Manuel"]
[Black "Duarte Mermow, Marcelo"]
[Result "1-0"]
[ECO "D00"]
[WhiteElo "1306"]
[BlackElo "2341"]
[PlyCount "79"]
[EventDate "2018.09.02"]
[EventType "tourn"]
[EventCountry "POR"]
[TimeControl "40/5400+30:1800+30"]

1. d4 d5 2. Bf4 Nc6 3. e3 a6 4. Nf3 Bf5 5. Nbd2 e6 6. Be2 Bb4 7. c3 Ba5 8. b4 Bb6 9. O-O Nf6 10. Qb3 O-O 11. Rfc1 Ng4 12. h3 Nf6 13. c4 Qd7 14. a3 dxc4 15. Nxc4 Ba7 16. Nce5 Nxe5 17. Nxe5 Qe7 18. Bf3 Rac8 19. Bxb7 Rb8 20. Nc6 Qd8 21. Nxb8 Bxb8 22. Bxa6 Be4 23. Bf1 Nh5 24. Bh2 Bf3 25. gxf3 Qe7 26. Bg2 Qg5 27. Rc5 e5 28. Rxe5 Qg6 29. Rc5 Rd8 30. Rac1 Ba7 31. Rxc7 h6 32. Rxa7 Kh7 33. Qxf7 Rh8 34. Qxg6+ Kxg6 35. Be5 Rg8 36. f4 Kh7 37. Be4+ Kh8 38. Bg6 Nf6 39. Bxf6 gxf6 40. Rh7# 1-0

[Event "POR-ch Amateur 2018"]
[Site "Braga"]
[Date "2018.09.09"]
[Round "3"]
[White "Pedroso, Manuel"]
[Black "Pacheco, Joao Daniel Barbosa"]
[Result "1-0"]
[ECO "D00"]
[WhiteElo "1306"]
[BlackElo "1181"]
[PlyCount "79"]
[EventDate "2018.09.02"]
[EventType "tourn"]
[EventCountry "POR"]
[TimeControl "40/5400+30:1800+30"]

1. d4 d5 2. Bf4 Bf5 3. e3 Nf6 4. c4 c6 5. Qb3 Qb6 6. c5 Qd8 7. Qxb7 Nbd7 8. Qxc6 Bxb1 9. Rxb1 Qa5+ 10. Ke2 Rd8 11. a4 Qb4 12. Qb5 Qxb5+ 13. axb5 Nh5 14. Bg3 Nxg3+ 15. hxg3 e6 16. Ke1 g6 17. Nf3 Bg7 18. Ra1 O-O 19. Bd3 Ra8 20. Ke2 e5 21. Nxe5 Nxe5 22. dxe5 Bxe5 23. Ra2 Rfc8 24. c6 Rc7 25. Rc1 Rcc8 26. Rc5 Rd8 27. Rc2 Rdc8 28. b3 Bf6 29. b6 axb6 30. Rxa8 Rxa8 31. c7 Rc8 32. Ba6 Rxc7 33. Rxc7 Kg7 34. Bb7 d4 35. Bd5 g5 36. Rxf7+ Kg6 37. Rb7 dxe3 38. Kxe3 Bd8 39. Be4+ Kh6 40. Rxh7# 1-0

[Event "POR-ch Amateur 2018"]
[Site "Braga"]
[Date "2018.09.08"]
[Round "3"]
[White "Fernandes, Tiago Joao Carneiro"]
[Black "De Sousa Silva, Lucas Jose"]
[Result "1-0"]
[ECO "C54"]
[WhiteElo "1232"]
[BlackElo "1656"]
[PlyCount "59"]
[EventDate "2018.09.02"]
[EventType "tourn"]
[EventCountry "POR"]
[TimeControl "40/5400+30:1800+30"]

1. e4 e5 2. Nf3 Nc6 3. Bc4 Bc5 4. c3 Nf6 5. d3 d6 6. Bb3 h6 7. h3 O-O 8. O-O Re8 9. Re1 Be6 10. Bc2 Qd7 11. Nbd2 Ne7 12. d4 exd4 13. cxd4 Bb4 14. d5 Bxh3 15. gxh3 Qxh3 16. Nh2 Ng6 17. Re3 Qh4 18. Kh1 Qxf2 19. Ndf3 Nf4 20. Qf1 Qxc2 21. Nd4 Qc5 22. Nb3 Qc4 23. Qxc4 Bc5 24. Nxc5 dxc5 25. Qxc5 Nxe4 26. Qxc7 Nf2+ 27. Kg1 N2h3+ 28. Kf1 Nxd5 29. Rxe8+ Rxe8 30. Qd7 1-0

[Event "POR-ch Amateur 2018"]
[Site "Braga"]
[Date "2018.09.09"]
[Round "3"]
[White "Duarte, Francisco"]
[Black "Mendes, Bruno Daniel"]
[Result "1/2-1/2"]
[ECO "E30"]
[WhiteElo "1205"]
[BlackElo "1432"]
[PlyCount "131"]
[EventDate "2018.09.02"]
[EventType "tourn"]
[EventCountry "POR"]
[TimeControl "40/5400+30:1800+30"]

1. d4 e6 2. c4 Nf6 3. Nc3 Bb4 4. Bg5 d6 5. e4 Nbd7 6. f4 h6 7. Bxf6 Nxf6 8. Bd3 O-O 9. Nf3 b6 10. O-O Bxc3 11. bxc3 Bb7 12. d5 Re8 13. Qc2 e5 14. Qd2 Nd7 15. Ne1 Nc5 16. Qf2 Qd7 17. f5 Nxd3 18. Nxd3 Ba6 19. Nb2 c6 20. Rfe1 cxd5 21. cxd5 Qc7 22. Rac1 Qc5 23. c4 Rac8 24. Qxc5 Rxc5 25. Rc3 Rec8 26. Rec1 R8c7 27. g4 b5 28. Ra3 Bc8 29. Ra5 Bd7 30. a3 bxc4 31. Rxc5 Rxc5 32. Rxc4 f6 33. Kf2 Kf7 34. Ke3 Ke7 35. Rxc5 dxc5 36. Nc4 Bb5 37. Kd3 Kd7 38. Kc3 Ba4 39. Ne3 Bb5 40. Nc4 Ba4 41. Nd2 Bb5 42. Kb3 Bd3 43. a4 Kc7 44. Kc3 c4 45. a5 Kd7 46. a6 Kc7 47. h3 Kb6 48. Nxc4+ Bxc4 49. Kxc4 Kxa6 50. Kc5 Kb7 51. Kd6 a5 52. Ke7 a4 53. d6 a3 54. d7 a2 55. d8=Q a1=Q 56. Qd5+ Kb6 57. Qb3+ Kc5 58. Qd5+ Kb4 59. Qd6+ Kc3 60. Kf7 Qa7+ 61. Kg6 Qb7 62. Qd5 Qc7 63. Qd1 Kb4 64. Qb1+ Ka3 65. Qa1+ Kb3 66. Qb1+ 1/2-1/2